{"text_format":"1","workbook":"xlsx","n_sheets":4,"sheets":["Vejledning","Profil","Risikoliste","Højrisici - plan"],"not_rendered":{"charts":0,"images":1,"macros":1,"external_links":0,"defined_names":1,"comments":2,"pivot_tables":0},"unopened":[],"bounds":{"document_bytes":16777216,"sheet_cells":100000,"rows_first":2000,"rows_last":500,"rows_between":2000,"halvings":0,"cell_chars":16384,"cell_head_chars":4096},"cells_cut":0,"cells_raw":0,"read":"whole","date_system":"1900"}

{"sheet":"Vejledning","index":0,"n_rows":8,"n_cols":2,"rows_kept":8,"cut":false,"hidden":false,"merged":[[4,1,4,3]]}
[]
["Risikoanalyse"]
["Bilag x til PID"]
[]
["Projektnavn:","xxx-Projektnavn"]
["Projektejer:"]
["Projektleder:"]
["Opdateret d.","dd-mm-åååå"]

{"sheet":"Profil","index":1,"n_rows":8,"n_cols":10,"rows_kept":8,"cut":false,"hidden":false,"merged":[]}
["Nuværende Risiko Profil",null,null,null,null,null,"Tidligere Risiko Profil"]
[]
["Konsekvens",null,null,null,null,null,"Konsekvens"]
[3,8,null,"2, 4",null,null,3]
[2,3,"1, 6",9,null,null,2]
[1,"5, 11",null,"7, 10",null,null,1]
["4, 5, 6, 7, 8, 9, 10, 11, 12, 13, 1, 2, 3, 4, 5, 6, 7, 8, 9, 10, 11, 12, 13, 1, 2, 3, 4, 5, 6, 7, 8, 9, 10, 11, 12, 13, 12, 13",1,2,3,null,null,null,1,2,3]
[null,"Sandsynlighed",null,null,null,null,null,"Sandsynlighed"]

{"sheet":"Risikoliste","index":2,"n_rows":15,"n_cols":12,"rows_kept":15,"cut":false,"hidden":false,"merged":[]}
["XXX-Projektnavn"]
["Nr","Dato","Risiko titel","Beskrivelse af risiko","Sandsynlighed (1-3)","Konsekvens\n(1-3)","Riskiko\nværdi","Påvirke sandsynlighed","Påvirke konsekvens","Ansvarlig","Status","Opfølgning/\nbemærkning"]
[1,"2026-03-17","Manglende ressourcer ","Manglende ressourcer kan give projektet en forsinkelse og dermed true den hårde deadline der er sat i kontrakten.",2,3,{"$f":"E3*F3","v":6},{"$f":"IF(G3>5,\"Se højrisikoplan\",\"\")","v":"Se højrisikoplan"},{"$f":"IF(G3>5,\"Se højrisikoplan\",\"\")","v":"Se højrisikoplan"},"Projektleder","Imødegås",{"$f":"IF(G3>5,\"Se højrisikoplan\",\"\")","v":"Se højrisikoplan"}]
[2,"2026-04-16","Beslutninger trækker ud","Uenigheder om process xx kan trække beslutningerne ud og dermed forsinke projektet",3,3,{"$f":"E4*F4","v":9},"Se højrisikoplan","Se højrisikoplan","Projektleder","Imødegås",{"$f":"IF(G4>5,\"Se højrisikoplan\",\"\")","v":"Se højrisikoplan"}]
[3,null,null,null,1,2,2,"","",null,"Accepteres",""]
[4,null,"xxx",null,3,3,9,"Se højrisikoplan","Se højrisikoplan",null,"Imødegås","Se højrisikoplan"]
[5,null,null,null,1,1,1,"","",null,"Lukket",""]
[6,null,null,null,2,2,4,"","",null,"Accepteres",""]
[7,null,null,null,3,1,3,"","",null,"Registreret",""]
[8,null,null,null,1,3,3,"","",null,"Accepteres",""]
[9,null,"xxx",null,3,2,6,"Se højrisikoplan","Se højrisikoplan",null,"Lukket","Se højrisikoplan"]
[10,null,null,null,3,1,3,"","",null,null,""]
[11,null,null,null,1,1,1,"","",null,null,""]
[12,null,null,null,null,null,0,"","",null,null,""]
[13,null,null,null,null,null,0,"","",null,null,""]

{"sheet":"Højrisici - plan","index":3,"n_rows":12,"n_cols":11,"rows_kept":12,"cut":false,"hidden":false,"merged":[]}
["Risikovurdering af højrisici - plan for minimering af sandsynlighed og/eller konsekvens"]
["Nr","Risiko titel","Beskrivelse af risiko","Uddybende beskrivelse","Påvirke sandsynlighed","Påvirke konsekvens","Plan for imødegåelse","Status","Risiko-værdi","Risikoværdi ændringskriterier","Responsibel"]
[1,{"$f":"_xlfn.XLOOKUP(A3,Risikoliste!A:A,Risikoliste!C:C,\"\")","v":"Manglende ressourcer "},{"$f":"_xlfn.XLOOKUP(A3,Risikoliste!A:A,Risikoliste!D:D,\"\")","v":"Manglende ressourcer kan give projektet en forsinkelse og dermed true den hårde deadline der er sat i kontrakten."},"Afhængighed af ad hoc ressourcer fra IT-supporten kan forsinke projektets leverancer. Kan skyldes at medarbejderne ikke er til rådighed grundet driftsopgaver, der ikke kan ændres som f.eks. studiestart.","Fokus på planlægning og tidlig udmelding af specifikke områder, der skal tages hånd om, således at der kan tages højde for årshjulsopgaver.","Planlægge flere parallelle implementeringsforløb efter første pilot er gennemført.","Implementeringsplan udarbejdes tidligt I projektet, og godkendes af alle involverede, således at forudsætningerne for at nå det til deadline bliver tydelige for alle.","20-04-20xx: Første planlægningsmøde med supportcheferne er afholdt.",{"$f":"_xlfn.XLOOKUP(A3,Risikoliste!A:A,Risikoliste!G:G,\"\")","v":6},"Grøn, når detailplanlægningen viser at projektet kan nå I mål inden deadline.","Projektleder"]
[1,null,null,null,null,null,null,"14-05-20xx: Der skal skaffes finansiering til 3 studentermedhjælpere,d er kan bistå supporten I implementeringsperioden. ",null,null,"Projektejer"]
[2,{"$f":"_xlfn.XLOOKUP(A5,Risikoliste!A:A,Risikoliste!C:C,\"\")","v":"Beslutninger trækker ud"},{"$f":"_xlfn.XLOOKUP(A5,Risikoliste!A:A,Risikoliste!D:D,\"\")","v":"Uenigheder om process xx kan trække beslutningerne ud og dermed forsinke projektet"},"Det nye system betyder nye processer og dermed nye arbejdsgange. Der er en risiko for, at det kan blive svært for parterne at nå til enighed om en beslutning, og at det derfor kan forsinke projektet.","Sæt navn på de steder der kan være uenigheder og tag fat I dem først.","Skab styregruppeopbakning til at være åben om uenigheder og hurtig til at reagere på dem. Det er en god ting at eskalere.","Aftal med styregruppen hvordan uenigheder håndteres. Hvor hurtigt eskaleres der, hvad skal være beskrevet etc, således at der ikke går for lang tid med at forsøge sig frem.",null,{"$f":"_xlfn.XLOOKUP(A5,Risikoliste!A:A,Risikoliste!G:G,\"\")","v":9},"Grøn når styregruppen har vist at den kan håndtere beslutningerne hurtigt og i enighed.","Styregruppeforperson"]
[4,{"$f":"_xlfn.XLOOKUP(A6,Risikoliste!A:A,Risikoliste!C:C,\"\")","v":"xxx"},{"$f":"_xlfn.XLOOKUP(A6,Risikoliste!A:A,Risikoliste!D:D,\"\")","v":0},null,null,null,null,null,{"$f":"_xlfn.XLOOKUP(A6,Risikoliste!A:A,Risikoliste!G:G,\"\")","v":9}]
[9,null,{"$f":"_xlfn.XLOOKUP(A7,Risikoliste!A:A,Risikoliste!D:D,\"\")","v":0},null,null,null,null,null,{"$f":"_xlfn.XLOOKUP(A7,Risikoliste!A:A,Risikoliste!G:G,\"\")","v":6}]
[null,null,{"$f":"_xlfn.XLOOKUP(A8,Risikoliste!A:A,Risikoliste!D:D,\"\")","v":0},null,null,null,null,null,{"$f":"_xlfn.XLOOKUP(A8,Risikoliste!A:A,Risikoliste!G:G,\"\")","v":0}]
[null,null,{"$f":"_xlfn.XLOOKUP(A9,Risikoliste!A:A,Risikoliste!D:D,\"\")","v":0},null,null,null,null,null,{"$f":"_xlfn.XLOOKUP(A9,Risikoliste!A:A,Risikoliste!G:G,\"\")","v":0}]
[null,null,{"$f":"_xlfn.XLOOKUP(A10,Risikoliste!A:A,Risikoliste!D:D,\"\")","v":0},null,null,null,null,null,{"$f":"_xlfn.XLOOKUP(A10,Risikoliste!A:A,Risikoliste!G:G,\"\")","v":0}]
[null,null,{"$f":"_xlfn.XLOOKUP(A11,Risikoliste!A:A,Risikoliste!D:D,\"\")","v":0},null,null,null,null,null,{"$f":"_xlfn.XLOOKUP(A11,Risikoliste!A:A,Risikoliste!G:G,\"\")","v":0}]
[{"$f":"_xlfn._xlws.FILTER(Risikoliste!A12, Risikoliste!G12>=6,\"\")","v":""},null,{"$f":"_xlfn.XLOOKUP(A12,Risikoliste!A:A,Risikoliste!D:D,\"\")","v":""},null,null,null,null,null,{"$f":"_xlfn.XLOOKUP(A12,Risikoliste!A:A,Risikoliste!G:G,\"\")","v":""}]